Cogmind - Beta 17 @@@ ROGUE MODE // 2026.08.14 @ 02:55:48 Player: Nerf Result: Destroyed by 9Z-RO9(R) with Subdweller Laser Performance ------------- Evolutions (0) 0 Regions Visited (3) 600 Robots Destroyed (24) 120 Value Destroyed (534) 534 Prototype IDs (0) 0 Alien Tech Used (0) 0 Bonus (0) 0 TOTAL SCORE: 1254 Bonus ------- None Cogmind --------- Core Integrity 0/250 Matter 83/300 Energy 87/100 System Corruption 0% Temperature Cool (6) Movement Core (150) Ox2 Location -10/Subcaves Parts ------- > --- POWER (1) -------- (None) > --- PROPULSION (2) --- (None) > --- UTILITY (2) ------ Sensor Array Signal Interpreter > --- WEAPON (2) ------- Subdweller Beam Cannon > --- INVENTORY (5) ---- (None) Peak State ------------ > --- POWER ------------ Neutrino Core > --- PROPULSION ------- Flight Unit Flight Unit > --- UTILITY ---------- Sensor Array Improved Terrain Scanner > --- WEAPON ----------- EM Pulse Gun Bore Cannon > --- INVENTORY -------- Signal Interpreter EM Pulse Gun Grenade Launcher Grenade Launcher Rocket Launcher [Rating: 18] Favorites ----------- Power Ion Engine Engine Ion Engine Power Core Neutrino Core Propulsion Wheel Wheel Wheel Flight Unit Flight Unit Utility Improved Terrain Scanner Device Improved Terrain Scanner Processor Signal Interpreter Weapon EM Pulse Gun Energy Gun EM Pulse Gun Energy Cannon Subdweller Beam Cannon Ballistic Cannon Bore Cannon Launcher Rocket Launcher Build | -11 -10 -10 -10 ------- Run | Yrd Mat Min Sub Slots Evolved . | . . . . Power . | . . . . Propulsion . | . . . . Utility . | . . . . Weapon . | . . . . Parts Attached 19 | 8 3 3 5 Power 3 | 1 1 . 1 Engine 2 | 1 1 . . Core 1 | . . . 1 Reactor . | . . . . Propulsion 4 | 2 . 2 . Treads . | . . . . Leg . | . . . . Wheel 2 | 2 . . . Hover . | . . . . Flight 2 | . . 2 . Utility 4 | 2 . . 2 Device 3 | 2 . . 1 Storage . | . . . . Processor 1 | . . . 1 Hackware . | . . . . Protection . | . . . . Artifact . | . . . . Weapon 8 | 3 2 1 2 Energy Gun 3 | 3 . . . Energy Cannon 1 | . . . 1 Ballistic Gun . | . . . . Ballistic Cannon 1 | . . . 1 Launcher 3 | . 2 1 . Special Weapon . | . . . . Impact Weapon . | . . . . Slashing Weapon . | . . . . Piercing Weapon . | . . . . Special Melee Weapon . | . . . . Unidentified Prototypes . | . . . . Parts Lost 11 | . . . 11 Power 1 | . . . 1 Propulsion 2 | . . . 2 Utility 2 | . . . 2 Weapon 6 | . . . 6 Highest Loss Streak 10 | . . . 10 To Critical Strikes 1 | . . . 1 Average Backups 2 | . 3 5 4 Power . | . . . . Propulsion . | . . . . Utility . | . 1 2 1 Weapon 2 | . 2 3 3 Tool/Special . | . . . . Unused Backups . | . . . . Power . | . . . . Propulsion . | . . . . Utility . | . . . . Weapon . | . . . . Tool/Special . | . . . . Average Slot Usage (%) 98 | . 100 100 96 Engine 8 | . 14 14 3 Core 5 | . . . 10 Wheel 9 | . 28 10 . Flight 17 | . . 18 26 Device 26 | . 28 28 26 Energy Gun 15 | . 19 14 14 Ballistic Cannon 2 | . . . 5 Launcher 8 | . 8 14 7 Peak Build Rating 18 | 11 11 12 18 Average Rating 9 | 5 11 11 14 On Entrance 8 | . 11 11 12 Avg Prop Armor Cover (%) 7 | . . . 7 Naked Turns . | . . . . Heaviest Build 27 | 11 13 13 27 Greatest Support 20 | 20 20 20 8 Greatest Overweight (x) 3 | 1 . 2 3 Average Overweight (x) . | . . . 2 Largest Inventory Capacity 5 | 5 5 5 5 Average Capacity 5 | 5 5 5 5 Most Carried 5 | 1 5 5 5 Average Carried 2 | . 3 4 4 Final Capacity 5 | 5 5 5 5 Final Carried 5 | 1 5 5 . Class Distribution -------------------- 66% | Mutant 33% | Scavenger-Mutant Dominant Class ---------------- Mutant | -10/Materials Scavenger-Mutant | -10/Mines Scavenger-Mutant | -10/Subcaves Resources | -11 -10 -10 -10 ----------- Run | Yrd Mat Min Sub Matter Collected 423 | 259 47 58 59 Remotely . | . . . . Salvage Created 489 | 42 270 58 119 Parts 45 | 5 22 4 14 Haulers Intercepted . | . . . . Recyclers Shooed 1 | . 1 . . Parts Field Recycled . | . . . . Retrieved Matter . | . . . . Parts Self-Destructed 6 | . . . 6 Prevented . | . . . . Parts Restored . | . . . . Kills | -11 -10 -10 -10 ------- Run | Yrd Mat Min Sub Combat Hostiles Destroyed 18 | . 5 3 10 Guns 3 | . . 3 . Cannons 1 | . . . 1 AOE 14 | . 5 . 9 Classes Destroyed 7 | 1 4 1 1 Builder 1 | . 1 . . Tunneler 3 | 2 1 . . Recycler 1 | . 1 . . Watcher 1 | . 1 . . Swarmer 8 | . . 3 5 Grunt 5 | . 5 . . Subdweller 5 | . . . 5 Best Kill Streak 9 | 1 9 3 5 Combat Bots Only 5 | . 5 3 5 Max Kills in Single Turn 4 | 1 4 1 2 Gunslinging . | . . . . Exploded 3 | . 3 . 2 Melee . | . . . . Uniques/NPCs Destroyed . | . . . . Combat | -11 -10 -10 -10 -------- Run | Yrd Mat Min Sub Hostile Shots Fired 77 | . 17 12 48 Missed 23 | . 3 5 15 Hits 54 | . 14 7 33 Projectile 54 | . 14 7 33 Critical Strikes 2 | . 1 . 1 Damage Taken 915 | . 185 55 675 Core 256 | . 70 6 180 Absorbed by Shields . | . . . . Core Remaining (%) 100 | 100 . . . Volleys Fired 36 | 3 9 7 17 Largest 2 | 1 2 1 2 Hottest 90 | 50 90 40 88 Shots Fired 53 | 3 12 7 31 Gun 28 | 3 6 7 12 Cannon 8 | . . . 8 Launcher 17 | . 6 . 11 Special . | . . . . Kinetic 8 | . . . 8 Thermal 7 | 3 4 . . Explosive 17 | . 6 . 11 Electromagnetic 21 | . 2 7 12 Robot Hit Streak 8 | 3 8 3 3 Robot Miss Streak 3 | . 1 1 3 Penetration Max . | . . . . Secondary Targets 1 | . 1 . . Max Gunslinging Chain 1 | . 1 . . Shots Hit Robots 28 | 3 7 5 13 Core Hits 30 | 2 13 3 12 Critical Kills . | . . . . Critical Parts Destroyed . | . . . . Critical Strikes 3 | . 1 . 2 Burn 1 | . 1 . . Destroy 2 | . . . 2 Melee Attacks . | . . . . Impact . | . . . . Slashing . | . . . . Piercing . | . . . . Sneak Attacks . | . . . . Combat Hostiles . | . . . . Follow-up Attacks . | . . . . Damage Inflicted 1510 | 37 524 56 893 Guns 233 | 37 83 56 57 Cannons 70 | . . . 70 Explosions 1207 | . 441 . 766 Melee . | . . . . Ramming . | . . . . Kinetic 70 | . . . 70 Thermal 87 | 37 50 . . Explosive 1207 | . 441 . 766 Electromagnetic 146 | . 33 56 57 Impact . | . . . . Slashing . | . . . . Piercing . | . . . . Highest Corruption . | . . . . Average Corruption . | . . . . Corruption Purged . | . . . . Corruption Blocked . | . . . . Overload Shots . | . . . . Overflow Damage 14 | . . . 14 Projectiles . | . . . . Explosions 14 | . . . 14 Melee . | . . . . Knockbacks 1 | . . . 1 Impact . | . . . . Kinetic 1 | . . . 1 Secondary . | . . . . Self-Inflicted Damage 67 | . . . 67 Shots 4 | . . . 4 Rammed . | . . . . Targets Rammed . | . . . . Kicked . | . . . . Crushed . | . . . . Highest Temperature 39 | 10 39 . . Average Temperature 14 | 7 16 . . Received Heat Transfer 210 | . 123 . 87 Siege Activations . | . . . . Martial Activations . | . . . . Shielding Activations . | . . . . Robots Disrupted . | . . . . Combat Hostiles . | . . . . Robots Corrupted . | . . . . Combat Hostiles . | . . . . Parts Fried . | . . . . Impact Corruptions . | . . . . Robots Melted . | . . . . Combat Hostiles . | . . . . Parts Melted . | . . . . Heat Transferred 333 | 111 222 . . Parts Sabotaged . | . . . . Parts Stolen . | . . . . Parts Stripped . | . . . . Power Chain Reactions . | . . . . Alert | -11 -10 -10 -10 ------- Run | Yrd Mat Min Sub Maximum Alert Level . | . . . . Low Security (%) 100 | 100 100 100 . Level 1 . | . . . . Level 2 . | . . . . Level 3 . | . . . . Level 4 . | . . . . Level 5 . | . . . . High Security . | . . . . Max Security . | . . . . Peak Influence 184 | 5 184 145 . Initial 60 | . . 60 . Average 32 | . 78 122 . Influence Increases 409 | 10 194 85 120 Destroy 0b10 Robot/C 260 | . 100 60 100 Destroy 0b10 Robot/NC 30 | 10 20 . . Destroy Leader 52 | . 22 10 20 Disable Machine 15 | . 15 . . Destroy Structure 22 | . 22 . . Partial Spotted 15 | . 15 . . Lose Combat Pursuer 15 | . . 15 . Influence Decreases 409 | 10 40 124 235 Entered New Map 154 | . . 94 60 Time Decay 210 | 10 40 30 130 Lost Part 45 | . . . 45 Squads Dispatched . | . . . . Investigation . | . . . . Extermination . | . . . . Reinforcement . | . . . . Assault . | . . . . Garrison . | . . . . Intercept . | . . . . Searches Triggered . | . . . . Construction Impeded . | . . . . Haulers Reinforced . | . . . . Active Scanning Responses . | . . . . Cargo Convoy Interrupts . | . . . . Stealth | -11 -10 -10 -10 --------- Run | Yrd Mat Min Sub Distress Signals . | . . . . Communications Jammed . | . . . . Distress Signals . | . . . . Times Spotted 21 | . 6 4 11 Peak Tracking Total 7 | . 5 3 7 Tactical Retreats 1 | . . 1 . Traps | -11 -10 -10 -10 ------- Run | Yrd Mat Min Sub Traps Triggered . | . . . . Indirectly . | . . . . Trap Hack Attempts . | . . . . Triggered . | . . . . Disarmed . | . . . . Reprogrammed . | . . . . Reused . | . . . . Traps Extracted . | . . . . Installed . | . . . . Triggered . | . . . . Machines | -11 -10 -10 -10 ---------- Run | Yrd Mat Min Sub Machines Disabled 1 | . 1 . . Max in Single Turn 1 | . 1 . . Machines Repaired . | . . . . Machines Dismantled . | . . . . Machines Sabotaged . | . . . . Overloaded Fab Kills . | . . . . Hacking | -11 -10 -10 -10 --------- Run | Yrd Mat Min Sub Machines Accessed 1 | . 1 . . Terminals . | . . . . Fabricators . | . . . . Repair Stations . | . . . . Recycling Units 1 | . 1 . . Scanalyzers . | . . . . Garrison Access . | . . . . Total Hacks 1 | . 1 . . Successful 1 | . 1 . . Failed . | . . . . Catastrophic . | . . . . Database Lockouts . | . . . . Manual . | . . . . Terminals . | . . . . Fabricators . | . . . . Repair Stations . | . . . . Recycling Units 1 | . 1 . . Scanalyzers . | . . . . Garrison Access . | . . . . Terminal Hacks . | . . . . Fabricator Hacks . | . . . . Repair Station Hacks . | . . . . Recycling Unit Hacks 1 | . 1 . . Retrieve Components 1 | . 1 . . Scanalyzer . | . . . . Garrison Access Hacks . | . . . . Unauthorized Hacks . | . . . . Terminals . | . . . . Fabricators . | . . . . Repair Stations . | . . . . Recycling Units . | . . . . Scanalyzers . | . . . . Garrison Access . | . . . . Data Cores Recovered . | . . . . Used . | . . . . Hacking Detections . | . . . . Full Trace Events . | . . . . Feedback Events . | . . . . Feedback Blocked . | . . . . Robot Schematics Acquired . | . . . . Robots Built . | . . . . Authchips . | . . . . Time . | . . . . Total Robot Build Rating . | . . . . Part Schematics Acquired . | . . . . Parts Built . | . . . . Authchips . | . . . . Time . | . . . . Total Part Build Rating . | . . . . Part Studies Acquired . | . . . . Parts Repaired . | . . . . Time . | . . . . Parts Recycled . | . . . . Recycled Matter . | . . . . Retrieved Matter . | . . . . Retrieved Components 3 | . 3 . . Parts Scanalyzed . | . . . . Part Schematics Acquired . | . . . . Parts Damaged . | . . . . Bothacking | -11 -10 -10 -10 ------------ Run | Yrd Mat Min Sub Used RIF Installer . | . . . . Robots Hacked . | . . . . Non-combat . | . . . . Combat . | . . . . Robot Hacks Applied . | . . . . Relay Couplers Released . | . . . . Fabnet Peak Effective % . | . . . . Robots Rewired . | . . . . Allies Hacked . | . . . . Hacks Repelled . | . . . . Allies | -11 -10 -10 -10 -------- Run | Yrd Mat Min Sub Total Allies . | . . . . Largest Group . | . . . . Highest-Rated Group . | . . . . Highest-Rated Ally . | . . . . Total Orders . | . . . . Ally Attacks . | . . . . Total Damage . | . . . . Kills . | . . . . Allies Corrupted . | . . . . Allies Melted . | . . . . Intel | -11 -10 -10 -10 ------- Run | Yrd Mat Min Sub Active Infowar (turns) 629 | 131 149 65 284 Sensors 229 | . . . 229 Terrain 599 | 131 149 65 254 Robot Analysis Total . | . . . . Derelict Logs Recovered . | . . . . Drone Launches . | . . . . Drone Recoveries . | . . . . Exploration | -11 -10 -10 -10 ------------- Run | Yrd Mat Min Sub Turns Passed 898 | 400 149 65 284 Spaces Moved 293 | 61 106 37 89 Core 11 | 5 . . 6 Treads . | . . . . Legs . | . . . . Wheels 165 | 56 106 3 . Hover . | . . . . Flight 117 | . . 34 83 Fastest Speed 50 | 50 80 80 50 Average Speed 123 | 80 80 118 206 Slowest Speed 277 | 100 80 205 277 Overloaded Moves . | . . . . Propulsion Burnouts . | . . . . Robots Hopped . | . . . . Potential Cave-ins . | . . . . Cave-ins Triggered . | . . . . Exploration Rate (%) 16 | 5 37 15 9 Regions Visited 3 Branch Regions 2 Pre-discovered Areas . | . . . . Known Exits Taken . | . . . . Unknown Exits Taken 3 | 1 1 1 . Scrap Searched . | . . . . Spaces Dug . | . . . . Terrain Destroyed 127 | . 27 . 100 Melee . | . . . . Projectile 5 | . . . 5 AOE 122 | . 27 . 95 Terrain Rammed . | . . . . Walls Destroyed . | . . . . Machines Disabled . | . . . . Actions | -11 -10 -10 -10 --------- Run | Yrd Mat Min Sub Total 771 | 405 157 52 157 Wait 399 | 332 30 . 37 Move 290 | 60 105 36 89 Hop . | . . . . Pick Up 11 | 2 6 1 2 Fast Attach 9 | 6 . 1 2 Attach 7 | 1 . . 6 Detach . | . . . . Swap 10 | 1 4 3 2 Drop 9 | . 3 4 2 Fire 36 | 3 9 7 17 Melee . | . . . . Ram . | . . . . Kick . | . . . . Crush . | . . . . Escape Stasis . | . . . . Rewire . | . . . . Trap . | . . . . Miscellaneous . | . . . . Route ------- -11/Scrapyard -10/Materials -10/Mines -10/Subcaves History --------- Turn | Location | Event 39 | -11/Scrapyard | Discovered new exit (range 16) 401 | -11/Scrapyard | Entered Materials 402 | -10/Materials | Build established: Mutant 546 | -10/Materials | Discovered new exit (range 6) 550 | -10/Materials | Entered Mines 592 | -10/Mines | Discovered new exit (range 13) 593 | -10/Mines | Received a Rocket Launcher from a helpful Derelict 615 | -10/Mines | Entered Subcaves 616 | -10/Subcaves | Approached by a straggling Scientist 852 | -10/Subcaves | Ambushed by swarm of Subdwellers 873 | -10/Subcaves | Core integrity fell below 50% 886 | -10/Subcaves | Core integrity fell below 20% 899 | -10/Subcaves | Destroyed by 9Z-RO9(R) with Subdweller Laser Last Messages --------------- HV Slug penetrates WG-7IB(R). WG-7IB(R) destroyed. Subatomizers dissect the Sub. Beam Cannon. Grenade Launcher destroyed. Bore Cannon destroyed. Grenade Launcher destroyed. A6-CKX(R) destroyed. RO-T35(R) destroyed. X8-TQI(R) destroyed. B0-A1F(R) destroyed. The unstable cave ceiling collapses. Rocket Launcher destroyed. Acquired 9 matter. Subatomizers dissect the Sub. Beam Cannon. Acquired Sub. Beam Cannon. Dropped Sub. Beam Cannon. The unstable cave ceiling collapses. Scrap Shield Fragment crushed. Acquired Sub. Beam Cannon. Flight Unit destroyed. Map ----- +----------------------------------------------------+ | ?????????????????????????????????????????????????? | | ?????????????????????????????????????????????????? | | ?????????????????????????????????????????????????? | | ?????????????????????????????????????????????????? | | ?????????????????????????????????????????????????? | | ?????????????????????????????????????????????????? | | ?????????????????????????????????????????????????? | | ????????????????????????????????????????????????#? | | ??????????????????????????????????????#??????????? | | ?????????????????????????????????????????????????? | | ???????????????????????????????????????#?????????? | | ??????????????????? ?????????????????????????####? | | ?????????????? ?????????????????????????#???# #? | | ?????????????? ???????????????????????????## #? | | ?????????????? ??????? ? ?????????????#??## #? | | ???????????????" ?#??#??????#????? ???????# ##? | | ???????????????# #### ?? ?????????????????# ##? | | ???????????????? # ????#??????????##???# ## | | ????????????????# ????? ? ????????????## # | | ????????????????# ?????????? ?##?#?????## | | ?????????????"?## ??????? ????????????### | | ??????????????## #???????????#????????# | | ??????????????# ##########??#??#?????# | | ???????????????# # #????#???##### | | ??????????????## ##???????### | | ??????????????# @# ##??????# | | ?????????????# ### % #####?## | | ???????????????????## % """##### | | ????????????????????# """ ## | | ??????????????????# R # | | ??????????????????## ! #### ## ### ## | | ????????????????#?# [%[ ## ## ##### | | ??????????????????#" *%= ?# ###??## | | ?????????????????? != ?## #?#???## | | ????????????????? ??## #??#??## | | ????????????????## R ??## ###??## | | ?????????????????""" ## ??# # ## | | ???????????????? """" ##### ?# % | | ??????????????????? "" ???# ?? % | | ????????????????????? ??? ? ?? # | | ????????????????????? ## ???#??? ### # | | ???????????????????????? ??????? ##?# # ## | | ??????????????????????????#?#??? ??# #?## | | ??????????????????????????????? ? ???? #???# | | ?????????????????????????????????? ??? ##???## | | ?????????????????????????????????????? # ???#??# | | ?????????????????????????????????????????????????? | | ??????????????????????????????????????????#??????? | | ?????????????????????????????????????????????????? | | ?????????????????????????????????????????????????# | +----------------------------------------------------+ Best States ------------- Heat Dissipation 25 Energy Generation 19 Energy Capacity 315 Matter Stores 285 Matter Capacity 300 Sight Range 16 Robot Scan Range 14 Terrain Scan Range 16 Terrain Scan Density 10 Evasion (%) 44 Item Schematics ----------------- None Robot Schematics ------------------ None Fabricated ------------ Nothing Repaired ---------- Nothing Studied --------- None Alien Tech Used ----------------- None Achievements -------------- None Challenges ------------ None Game ------ Seed ThrusterCobblerShifter Manual? 0 Play Time 00:16:07 Cumulative 11.9 hours Start 2026.08.14 @ 02:43:48 End 2026.08.14 @ 02:55:48 Sessions 1 Manual Loads 0 Difficulty Rogue Special Mode None Game No. 30 Rogue 30 Adventurer 0 Explorer 0 Win Type - Total 0 Types 0/0/0/0/0/0/0/0/0/0 Lore% 6 Gallery% 14 Achievement% 12 Wizard Run 0 Options --------- Layout 1 ASCII 0 Keyboard 0 Movement Mouse Keybinds 0 Fullscreen 1 Font 32/SmallcapsGlow Map View 50x35 Zoom Use 0% Tactical HUD 0 Map Filters NONE Filters NONE Steam 1 RUN: 62b90999-14ff-4830-893d-198158bc5119